fUSD/lending_fUSD_20250216
["ID","MTS","AMOUNT","RATE_DAILY","PERIOD"]
[353255208,1739719843057,-500.0,0.00010958,2]
[353255209,1739719843067,-960.55,0.00010958,2]
[353255210,1739719843078,-500.0,0.00010958,2]
[353255211,1739719843297,-500.0,0.00010958,2]
[353255212,1739719843307,-1316.29,0.00010958,2]
[353255213,1739719843315,-628.04,0.00010958,2]
[353255214,1739719843324,-967.16,0.00010958,2]
[353255215,1739719843334,-1082.77,0.00010958,2]
[353255216,1739719843343,-537.42,0.00010958,2]
[353255217,1739719843353,-1148.65,0.00010958,2]
[353255218,1739719843362,-522.8,0.00010958,2]
[353255219,1739719843371,-500.0,0.00010958,2]
[353255220,1739719843380,-1133.71,0.00010958,2]
[353255221,1739719843390,-500.0,0.00010958,2]
[353255222,1739719843399,-637.50345832,0.00010958,2]
[353255223,1739719843408,-1545.2,0.00010958,2]
[353255224,1739719843418,-500.0,0.00010958,2]
[353255225,1739719843427,-1208.7,0.00010958,2]
[353255226,1739719843436,-500.0,0.00010958,2]
[353255227,1739719843445,-500.0,0.00010958,2]
[353255228,1739719843454,-3059.32,0.00010958,2]
[353255229,1739719843463,-500.0,0.00010958,2]
[353255230,1739719843472,-575.61,0.00010958,2]
[353255231,1739719843481,-1330.36,0.00010958,2]
[353255232,1739719843490,-1260.47,0.00010958,2]
[353255233,1739719843499,-500.0,0.00010958,2]
[353255234,1739719843508,-657.52,0.00010958,2]
[353255235,1739719843518,-656.43,0.00010958,2]
[353255236,1739719843527,-533.75,0.00010958,2]
[353255237,1739719843536,-500.0,0.00010958,2]
[353255238,1739719843545,-500.0,0.00010958,2]
[353255239,1739719843555,-1280.71,0.00010958,2]
[353255240,1739719843564,-1667.11,0.00010958,2]
[353255241,1739719843573,-1761.78,0.00010958,2]
[353255242,1739719843583,-655.49,0.00010958,2]
[353255243,1739719843592,-765.75,0.00010958,2]
[353255244,1739719843601,-500.0,0.00010958,2]
[353255245,1739719843611,-954.99,0.00010958,2]
[353255246,1739719843620,-510.92,0.00010958,2]
[353255247,1739719843630,-1071.72,0.00010958,2]
[353255248,1739719843639,-898.62,0.00010958,2]
[353255249,1739719843649,-963.74,0.00010958,2]
[353255250,1739719843658,-500.0,0.00010958,2]
[353255251,1739719843668,-500.0,0.00010958,2]
[353255252,1739719843677,-1432.53,0.00010958,2]
[353255253,1739719843687,-1288.05,0.00010958,2]
[353255254,1739719843696,-1131.27,0.00010958,2]
[353255255,1739719843706,-1497.56,0.00010958,2]
[353255257,1739719843715,-938.67,0.00010958,2]
[353255259,1739719843724,-922.59,0.00010958,2]
[353255261,1739719843733,-500.0,0.00010958,2]
[353255262,1739719843742,-500.0,0.00010958,2]
[353255264,1739719843751,-1297.94,0.00010958,2]
[353255265,1739719843760,-500.0,0.00010958,2]
[353255267,1739719843769,-1275.03,0.00010958,2]
[353255268,1739719843778,-1207.44,0.00010958,2]
[353255270,1739719843787,-857.03,0.00010958,2]
[353255272,1739719843797,-1139.27,0.00010958,2]
[353255273,1739719843806,-2609.71,0.00010958,2]
[353255275,1739719843815,-2357.36,0.00010958,2]
[353255276,1739719843825,-948.68,0.00010958,2]
[353255278,1739719843834,-1322.5,0.00010958,2]
[353255279,1739719843843,-745.27,0.00010958,2]
[353255281,1739719843853,-1014.65,0.00010958,2]
[353255283,1739719843862,-500.0,0.00010958,2]
[353255284,1739719843871,-3965.85,0.00010958,2]
[353255286,1739719843881,-732.97,0.00010958,2]
[353255287,1739719843890,-1054.68,0.00010958,2]
[353255289,1739719843899,-1029.25,0.00010958,2]
[353255290,1739719843908,-647.83,0.00010958,2]
[353255292,1739719843918,-1589.44,0.00010958,2]
[353255294,1739719843927,-500.0,0.00010958,2]
[353255295,1739719843936,-1129.52,0.00010958,2]
[353255297,1739719843945,-500.0,0.00010958,2]
[353255299,1739719843954,-500.0,0.00010958,2]
[353255300,1739719843963,-856.52,0.00010958,2]
[353255302,1739719843972,-1397.84,0.00010958,2]
[353255303,1739719843981,-2006.41,0.00010958,2]
[353255304,1739719843990,-1495.83,0.00010958,2]
[353255305,1739719843999,-2283.55,0.00010958,2]
[353255306,1739719844008,-1573.52,0.00010958,2]
[353255307,1739719844017,-950.54,0.00010958,2]
[353255308,1739719844025,-500.0,0.00010958,2]
[353255309,1739719844035,-1359.93,0.00010958,2]
[353255310,1739719844043,-629.85,0.00010958,2]
[353255311,1739719844052,-500.0,0.00010958,2]
[353255312,1739719844061,-1723.99,0.00010958,2]
[353255313,1739719844070,-937.03,0.00010958,2]
[353255314,1739719844079,-1047.35,0.00010958,2]
[353255315,1739719844089,-835.09,0.00010958,2]
[353255316,1739719844098,-989.7,0.00010958,2]
[353255317,1739719844107,-1680.52,0.00010958,2]
[353255318,1739719844116,-500.0,0.00010958,2]
[353255319,1739719844125,-502.61,0.00010958,2]
[353255320,1739719844134,-1596.94,0.00010958,2]
[353255321,1739719844144,-685.52,0.00010958,2]
[353255322,1739719844153,-2108.61,0.00010958,2]
[353255323,1739719844162,-500.0,0.00010958,2]
[353255324,1739719844172,-500.0,0.00010958,2]
[353255325,1739719844181,-1064.74,0.00010958,2]
[353255326,1739719844191,-704.43,0.00010958,2]
[353255327,1739719844203,-500.0,0.00010958,2]
[353255328,1739719844216,-515.90446977,0.00010958,2]
[353255329,1739719844225,-505.67260562,0.00010958,2]
[353255330,1739719844235,-500.0,0.00010958,2]
[353255331,1739719844244,-564.7,0.00010958,2]
[353255332,1739719844254,-726.22,0.00010958,2]
[353255333,1739719844263,-1272.36,0.00010958,2]
[353255334,1739719844273,-500.0,0.00010958,2]
[353255335,1739719844285,-709.56,0.00010958,2]
[353255336,1739719844295,-500.0,0.00010958,2]
[353255337,1739719844304,-580.11,0.00010958,2]
[353255338,1739719844317,-443.77870812,0.00010958,2]
[353255339,1739719844327,-1243.11,0.00010958,2]
[353255340,1739719844336,-1320.64,0.00010958,2]
[353255341,1739719844345,-893.54,0.00010958,2]
[353255342,1739719844354,-500.0,0.00010958,2]
[353255343,1739719844364,-636.44,0.00010958,2]
[353255344,1739719844373,-500.0,0.00010958,2]
[353255345,1739719844382,-500.0,0.00010958,2]
[353255346,1739719844392,-748.46,0.00010958,2]
[353255347,1739719844401,-740.82,0.00010958,2]
[353255348,1739719844411,-500.0,0.00010958,2]
[353255349,1739719844420,-1055.86,0.00010958,2]
[353255350,1739719844429,-500.0,0.00010958,2]
[353255351,1739719844439,-1117.63,0.00010958,2]
[353255352,1739719844448,-500.0,0.00010958,2]
[353255353,1739719844457,-857.05,0.00010958,2]
[353255354,1739719844466,-202.57994686,0.00010958,2]
[353255355,1739719844475,-500.0,0.00010958,2]
[353255356,1739719844484,-500.0,0.00010958,2]
[353255357,1739719844493,-500.0,0.00010958,2]
[353255358,1739719844503,-500.0,0.00010958,2]
[353255359,1739719844512,-499.18,0.00010958,2]
[353255360,1739719844522,-681.67702262,0.00010958,2]
[353255361,1739719844532,-874.76938676,0.00010959,2]
[353255362,1739719844541,-1000.0,0.00010959,2]
[353255363,1739719844551,-1000.0,0.00010959,2]
[353255364,1739719844562,-1000.0,0.00010959,2]
[353255365,1739719844571,-1000.0,0.00010959,2]
[353255366,1739719844580,-1000.0,0.00010959,2]
[353255367,1739719844589,-1000.0,0.00010959,2]
[353255368,1739719844598,-1000.0,0.00010959,2]
[353255369,1739719844607,-1000.0,0.00010959,2]
[353255370,1739719844616,-1000.0,0.00010959,2]
[353255371,1739719844626,-1000.0,0.00010959,2]
[353255372,1739719844635,-150.0,0.00010959,2]
[353255373,1739719844645,-204.46,0.00010978,2]
[353255374,1739719844655,-1061.88402156,0.00010981,2]
[353255375,1739719844666,-255.0,0.00010998,2]
[353255376,1739719844677,-236.4350322,0.00010999,2]
[353255377,1739719844687,-411.3,0.00011,2]
[353255378,1739719844696,-802.90796683,0.00011001,2]
[353255379,1739719844705,-557.06917386,0.00011023,2]
[353255380,1739719844715,-156.042201,0.0001104,3]
[353255381,1739719844724,-500.0,0.0001104,2]
[353255382,1739719844733,-500.0,0.0001104,2]
[353255383,1739719844743,-500.0,0.0001104,2]
[353255384,1739719844752,-500.0,0.0001104,2]
[353255385,1739719844761,-500.0,0.0001104,2]
[353255386,1739719844771,-500.0,0.0001104,2]
[353255387,1739719844779,-500.0,0.0001104,2]
[353255388,1739719844789,-500.0,0.0001104,2]
[353255389,1739719844798,-500.0,0.0001104,2]
[353255390,1739719844807,-500.0,0.0001104,2]
[353255391,1739719844816,-500.0,0.0001104,2]
[353255392,1739719844826,-500.0,0.0001104,2]
[353255393,1739719844835,-500.0,0.0001104,2]
[353255394,1739719844844,-500.0,0.0001104,2]
[353255395,1739719844853,-500.0,0.0001104,2]
[353255396,1739719844863,-500.0,0.0001104,2]
[353255397,1739719844872,-500.0,0.0001104,2]
[353255398,1739719844882,-500.0,0.0001104,2]
[353255399,1739719844891,-500.0,0.0001104,2]
[353255400,1739719844901,-500.0,0.0001104,2]
[353255401,1739719844910,-500.0,0.0001104,2]
[353255402,1739719844919,-500.0,0.0001104,2]
[353255403,1739719844928,-515.81,0.0001104,2]
[353255404,1739719844938,-500.0,0.0001104,2]
[353255405,1739719844947,-500.0,0.0001104,2]
[353255406,1739719844957,-507.63118899,0.0001104,2]
[353255407,1739719844966,-500.0,0.0001104,2]
[353255408,1739719844975,-500.0,0.0001104,2]
[353255409,1739719844984,-500.0,0.0001104,2]
[353255410,1739719844993,-500.0,0.0001104,2]
[353255411,1739719845004,-500.0,0.0001104,2]
[353255412,1739719845014,-500.0,0.0001104,2]
[353255413,1739719845023,-500.0,0.0001104,2]
[353255414,1739719845033,-500.0,0.0001104,2]
[353255415,1739719845042,-250.61205483,0.0001104,2]
[353255416,1739719845052,-500.0,0.0001104,2]
[353255417,1739719845061,-500.0,0.0001104,2]
[353255418,1739719845071,-500.0,0.0001104,2]
[353255419,1739719845080,-162.11246334,0.0001104,2]
[353255420,1739719845090,-500.0,0.0001104,2]
[353255421,1739719845099,-500.0,0.0001104,2]
[353255422,1739719845108,-500.0,0.0001104,2]
[353255423,1739719845118,-500.0,0.0001104,2]
[353255424,1739719845128,-500.0,0.0001104,2]
[353255425,1739719845137,-500.0,0.0001104,2]
[353255426,1739719845147,-500.0,0.0001104,2]
[353255427,1739719845156,-500.0,0.0001104,2]
[353255428,1739719845165,-500.0,0.0001104,2]
[353255429,1739719845174,-500.0,0.0001104,2]
[353255430,1739719845183,-500.0,0.0001104,2]
[353255431,1739719845195,-500.0,0.0001104,2]
[353255432,1739719845205,-500.0,0.0001104,2]
[353255433,1739719845217,-500.0,0.0001104,2]
[353255434,1739719845227,-500.0,0.0001104,2]
[353255435,1739719845236,-500.0,0.0001104,2]
[353255436,1739719845246,-501.5879832,0.0001104,2]
[353255437,1739719845255,-500.0,0.0001104,2]
[353255438,1739719845264,-500.0,0.0001104,2]
[353255439,1739719845274,-500.0,0.0001104,2]
[353255440,1739719845285,-504.344437,0.0001104,2]
[353255441,1739719845294,-506.08797835,0.0001104,2]
[353255442,1739719845303,-500.0,0.0001104,2]
[353255443,1739719845312,-500.0,0.0001104,2]
[353255444,1739719845322,-500.0,0.0001104,2]
[353255445,1739719845332,-500.0,0.0001104,2]
[353255446,1739719845341,-500.0,0.0001104,2]
[353255447,1739719845350,-500.0,0.0001104,2]
[353255448,1739719845359,-500.0,0.0001104,2]
[353255449,1739719845369,-500.0,0.0001104,2]
[353255450,1739719845378,-500.0,0.0001104,2]
[353255451,1739719845387,-500.0,0.0001104,2]
[353255452,1739719845397,-500.0,0.0001104,2]
[353255453,1739719845406,-500.0,0.0001104,2]
[353255454,1739719845415,-500.0,0.0001104,2]
[353255455,1739719845424,-500.0,0.0001104,2]
[353255456,1739719845433,-500.0,0.0001104,2]
[353255457,1739719845443,-500.0,0.0001104,2]
[353255458,1739719845452,-501.87743306,0.0001104,2]
[353255459,1739719845462,-500.0,0.0001104,2]
[353255460,1739719845471,-500.0,0.0001104,2]
[353255461,1739719845480,-500.0,0.0001104,2]
[353255462,1739719845490,-501.42318138,0.0001104,2]
[353255463,1739719845500,-500.0,0.0001104,2]
[353255464,1739719845509,-500.0,0.0001104,2]
[353255465,1739719845519,-500.0,0.0001104,2]
[353255466,1739719845528,-500.0,0.0001104,2]
[353255467,1739719845538,-500.0,0.0001104,2]
[353255468,1739719845547,-500.0,0.0001104,2]
[353255469,1739719845556,-500.0,0.0001104,2]
[353255470,1739719845565,-500.0,0.0001104,2]
[353255471,1739719845575,-500.0,0.0001104,2]
[353255472,1739719845584,-500.0,0.0001104,2]
[353255473,1739719845594,-500.0,0.0001104,2]
[353255474,1739719845603,-500.0,0.0001104,2]
[353255475,1739719845612,-500.0,0.0001104,2]
[353255476,1739719845622,-503.23671104,0.0001104,2]
[353255477,1739719845631,-502.2207537,0.0001104,2]
[353255478,1739719845641,-500.0,0.0001104,2]
[353255479,1739719845650,-500.0,0.0001104,2]
[353255480,1739719845659,-500.0,0.0001104,2]
[353255481,1739719845669,-500.0,0.0001104,2]
[353255482,1739719845678,-500.0,0.0001104,2]
[353255483,1739719845687,-500.0,0.0001104,2]
[353255484,1739719845697,-500.0,0.0001104,2]
[353255485,1739719845706,-500.0,0.0001104,2]
[353255486,1739719845716,-501.38958874,0.0001104,2]
[353255487,1739719845725,-500.0,0.0001104,2]
[353255489,1739719845734,-500.0,0.0001104,2]
[353255491,1739719845744,-500.0,0.0001104,2]
[353255492,1739719845755,-500.0,0.0001104,2]
[353255493,1739719845764,-500.0,0.0001104,2]
[353255494,1739719845774,-500.0,0.0001104,2]
[353255496,1739719845783,-500.0,0.0001104,2]
[353255498,1739719845793,-500.0,0.0001104,2]
[353255499,1739719845803,-500.0,0.0001104,2]
[353255501,1739719845812,-500.0,0.0001104,2]
[353255502,1739719845823,-500.0,0.0001104,2]
[353255503,1739719845832,-500.0,0.0001104,2]
[353255504,1739719845841,-507.8612183,0.0001104,2]
[353255505,1739719845851,-500.0,0.0001104,2]
[353255506,1739719845861,-500.0,0.0001104,2]
[353255507,1739719845870,-500.0,0.0001104,2]
[353255508,1739719845881,-190.07508399,0.0001104,2]
[353255509,1739719845891,-579.20944229,0.0001104,2]
[353255510,1739719845901,-500.0,0.0001104,2]
[353255511,1739719845910,-500.0,0.0001104,2]
[353255512,1739719845919,-508.29469466,0.0001104,2]
[353255513,1739719845929,-500.0,0.0001104,2]
[353255514,1739719845938,-500.0,0.0001104,2]
[353255515,1739719845948,-500.0,0.0001104,2]
[353255516,1739719845958,-500.0,0.0001104,2]
[353255517,1739719845971,-500.0,0.0001104,2]
[353255518,1739719845985,-507.59389061,0.0001104,2]
[353255519,1739719845997,-502.95097692,0.0001104,2]
[353255520,1739719846007,-500.0,0.0001104,2]
[353255521,1739719846018,-643.02756423,0.0001104,2]
[353255522,1739719846027,-500.0,0.0001104,2]
[353255523,1739719846037,-566.18224198,0.0001104,2]
[353255524,1739719846047,-500.0,0.0001104,2]
[353255525,1739719846057,-337.96610271,0.0001104,2]
[353255526,1739719846068,-500.0,0.0001104,2]
[353255527,1739719846078,-505.0112564,0.0001104,2]
[353255528,1739719846087,-500.0,0.0001104,2]
[353255529,1739719846096,-500.0,0.0001104,2]
[353255530,1739719846106,-500.0,0.0001104,2]
[353255531,1739719846115,-500.0,0.0001104,2]
[353255532,1739719846124,-500.0,0.0001104,2]
[353255533,1739719846133,-500.0,0.0001104,2]
[353255534,1739719846143,-500.0,0.0001104,2]
[353255535,1739719846152,-500.0,0.0001104,2]
[353255536,1739719846161,-500.0,0.0001104,2]
[353255537,1739719846171,-500.0,0.0001104,2]
[353255538,1739719846180,-500.0,0.0001104,2]
[353255539,1739719846190,-505.99037501,0.0001104,2]
[353255540,1739719846200,-500.0,0.0001104,2]
[353255541,1739719846217,-500.0,0.0001104,2]
[353255542,1739719846227,-500.0,0.0001104,2]
[353255543,1739719846236,-500.0,0.0001104,2]
[353255544,1739719846245,-500.0,0.0001104,2]
[353255545,1739719846257,-600.26625159,0.0001104,2]
[353255546,1739719846266,-500.0,0.0001104,2]
[353255547,1739719846276,-500.0,0.0001104,2]
[353255548,1739719846287,-500.0,0.0001104,2]
[353255549,1739719846297,-500.0,0.0001104,2]
[353255550,1739719846306,-500.0,0.0001104,2]
[353255551,1739719846316,-500.0,0.0001104,2]
[353255552,1739719846325,-500.0,0.0001104,2]
[353255553,1739719846335,-500.0,0.0001104,2]
[353255554,1739719846345,-500.0,0.0001104,2]
[353255555,1739719846355,-500.0,0.0001104,2]
[353255556,1739719846364,-500.0,0.0001104,2]
[353255557,1739719846375,-500.0,0.0001104,2]
[353255558,1739719846384,-501.61658682,0.0001104,2]
[353255559,1739719846393,-500.0,0.0001104,2]
[353255560,1739719846403,-500.0,0.0001104,2]
[353255561,1739719846412,-500.0,0.0001104,2]
[353255563,1739719846422,-378.57378324,0.0001104,2]
[353255564,1739719846431,-500.0,0.0001104,2]
[353255565,1739719846441,-500.0,0.0001104,2]
[353255566,1739719846450,-500.0,0.0001104,2]
[353255567,1739719846459,-500.0,0.0001104,2]
[353255568,1739719846468,-500.0,0.0001104,2]
[353255569,1739719846477,-500.0,0.0001104,2]
[353255570,1739719846486,-500.0,0.0001104,2]
[353255571,1739719846495,-500.0,0.0001104,2]
[353255572,1739719846504,-500.0,0.0001104,2]
[353255573,1739719846514,-500.0,0.0001104,2]
[353255574,1739719846522,-508.00466441,0.0001104,2]
[353255575,1739719846531,-500.0,0.0001104,2]
[353255576,1739719846541,-500.0,0.0001104,2]
[353255577,1739719846551,-500.0,0.0001104,2]
[353255578,1739719846560,-500.0,0.0001104,2]
[353255579,1739719846570,-503.31591134,0.0001104,2]
[353255580,1739719846580,-500.0,0.0001104,2]
[353255581,1739719846589,-500.0,0.0001104,2]
[353255582,1739719846598,-500.0,0.0001104,2]
[353255583,1739719846608,-500.0,0.0001104,2]
[353255584,1739719846617,-500.0,0.0001104,2]
[353255585,1739719846627,-500.0,0.0001104,2]
[353255586,1739719846636,-1091.82,0.0001104,2]
[353255587,1739719846646,-500.0,0.0001104,2]
[353255588,1739719846655,-501.29654235,0.0001104,2]
[353255589,1739719846665,-500.0,0.0001104,2]
[353255590,1739719846675,-500.0,0.0001104,2]
[353255591,1739719846684,-500.0,0.0001104,2]
[353255592,1739719846695,-1505.24,0.0001104,2]
[353255593,1739719846705,-500.0,0.0001104,2]
[353255594,1739719846715,-500.0,0.0001104,2]
[353255595,1739719846725,-241.4980508,0.0001104,2]
[353255596,1739719846734,-500.0,0.0001104,2]
[353255597,1739719846744,-910.39,0.0001104,2]
[353255598,1739719846753,-1653.06,0.0001104,2]
[353255599,1739719846763,-500.0,0.0001104,2]
[353255600,1739719846773,-500.0,0.0001104,2]
[353255601,1739719846782,-1341.68,0.0001104,2]
[353255602,1739719846792,-500.0,0.0001104,2]
[353255603,1739719846801,-500.0,0.0001104,2]
[353255604,1739719846811,-265.85120819,0.0001104,2]
[353255605,1739719846821,-1590.08,0.0001104,2]
[353255606,1739719846830,-500.0,0.0001104,2]
[353255607,1739719846839,-500.0,0.0001104,2]
[353255608,1739719846849,-500.0,0.0001104,2]
[353255609,1739719846858,-4185.89,0.0001104,2]
[353255610,1739719846868,-500.0,0.0001104,2]
[353255611,1739719846878,-500.0,0.0001104,2]
[353255612,1739719846888,-500.0,0.0001104,2]
[353255613,1739719846898,-500.0,0.0001104,2]
[353255614,1739719846907,-1188.19,0.0001104,2]
[353255615,1739719846917,-500.0,0.0001104,2]
[353255616,1739719846927,-162.21417692,0.0001104,2]
[353255617,1739719846937,-500.0,0.0001104,2]
[353255618,1739719846947,-500.0,0.0001104,2]
[353255619,1739719846957,-511.28031062,0.0001104,2]
[353255620,1739719846967,-500.0,0.0001104,2]
[353255621,1739719846976,-500.0,0.0001104,2]
[353255622,1739719846986,-500.0,0.0001104,2]
[353255623,1739719846996,-500.0,0.0001104,2]
[353255624,1739719847006,-944.72,0.0001104,2]
[353255625,1739719847016,-500.0,0.0001104,2]
[353255626,1739719847026,-500.0,0.0001104,2]
[353255627,1739719847035,-500.0,0.0001104,2]
[353255628,1739719847045,-497.15284971,0.0001104,2]
[353255629,1739719847055,-500.0,0.0001104,2]
[353255630,1739719847066,-500.0,0.0001104,2]
[353255631,1739719847076,-502.22149305,0.0001104,2]
[353255632,1739719847086,-500.0,0.0001104,2]
[353255633,1739719847095,-500.0,0.0001104,2]
[353255634,1739719847105,-1095.34,0.0001104,2]
[353255635,1739719847115,-500.0,0.0001104,2]
[353255636,1739719847124,-503.90324184,0.0001104,2]
[353255637,1739719847134,-500.0,0.0001104,2]
[353255638,1739719847143,-1710.67,0.0001104,2]
[353255639,1739719847153,-500.0,0.0001104,2]
[353255640,1739719847163,-500.0,0.0001104,2]
[353255641,1739719847173,-500.0,0.0001104,2]
[353255642,1739719847183,-500.0,0.0001104,2]
[353255643,1739719847194,-504.39355837,0.0001104,2]
[353255644,1739719847204,-989.2,0.0001104,2]
[353255645,1739719847217,-500.0,0.0001104,2]
[353255646,1739719847227,-500.0,0.0001104,2]
[353255647,1739719847238,-500.0,0.0001104,2]
[353255648,1739719847444,-1445.76,0.0001104,2]
[353255649,1739719847454,-500.0,0.0001104,2]
[353255650,1739719847464,-500.0,0.0001104,2]
[353255651,1739719847474,-500.0,0.0001104,2]
[353255652,1739719847485,-500.0,0.0001104,2]
[353255653,1739719847494,-500.0,0.0001104,2]
[353255654,1739719847503,-1428.0,0.0001104,2]
[353255655,1739719847513,-507.07409964,0.0001104,2]
[353255656,1739719847522,-500.0,0.0001104,2]
[353255657,1739719847533,-500.0,0.0001104,2]
[353255658,1739719847543,-500.0,0.0001104,2]
[353255659,1739719847553,-573.88687401,0.0001104,2]
[353255660,1739719847563,-500.0,0.0001104,2]
[353255661,1739719847574,-500.0,0.0001104,2]
[353255662,1739719847584,-1000.0,0.0001104,2]
[353255663,1739719847593,-500.0,0.0001104,2]
[353255664,1739719847603,-507.82825032,0.0001104,2]
[353255665,1739719847613,-500.0,0.0001104,2]
[353255666,1739719847623,-500.0,0.0001104,2]
[353255667,1739719847633,-1550.81,0.0001104,2]
[353255668,1739719847642,-508.33627601,0.0001104,2]
[353255669,1739719847652,-500.0,0.0001104,2]
[353255670,1739719847662,-500.0,0.0001104,2]
[353255671,1739719847672,-500.0,0.0001104,2]
[353255672,1739719847682,-500.0,0.0001104,2]
[353255673,1739719847693,-500.0,0.0001104,2]
[353255674,1739719847703,-500.0,0.0001104,2]
[353255675,1739719847712,-2083.21,0.0001104,2]
[353255676,1739719847722,-500.0,0.0001104,2]
[353255677,1739719847732,-500.0,0.0001104,2]
[353255678,1739719847741,-500.0,0.0001104,2]
[353255679,1739719847751,-500.0,0.0001104,2]
[353255680,1739719847761,-500.0,0.0001104,2]
[353255681,1739719847771,-500.0,0.0001104,2]
[353255682,1739719847781,-1852.92,0.0001104,2]
[353255683,1739719847790,-500.0,0.0001104,2]
[353255684,1739719847799,-500.0,0.0001104,2]
[353255685,1739719847808,-500.0,0.0001104,2]
[353255686,1739719847817,-500.0,0.0001104,2]
[353255687,1739719847826,-500.0,0.0001104,2]
[353255688,1739719847835,-500.0,0.0001104,2]
[353255689,1739719847844,-500.0,0.0001104,2]
[353255690,1739719847853,-500.0,0.0001104,2]
[353255691,1739719847863,-532.74520771,0.0001104,2]
[353255692,1739719847873,-500.0,0.0001104,2]
[353255693,1739719847883,-500.0,0.0001104,2]
[353255694,1739719847893,-500.0,0.0001104,2]
[353255695,1739719847903,-500.0,0.0001104,2]
[353255696,1739719847913,-500.0,0.0001104,2]
[353255697,1739719847923,-500.0,0.0001104,2]
[353255698,1739719847933,-500.0,0.0001104,2]
[353255699,1739719847943,-500.0,0.0001104,2]
[353255700,1739719847953,-501.1776116,0.00011041,2]
[353255701,1739719847963,-500.0,0.00011041,2]
[353255702,1739719847973,-500.0,0.00011041,2]
[353255703,1739719847983,-500.0,0.00011041,2]
[353255704,1739719847993,-500.0,0.00011041,2]
[353255705,1739719848003,-553.80210923,0.00011041,2]
[353255706,1739719848012,-500.0,0.00011041,2]
[353255707,1739719848022,-500.0,0.00011041,2]
[353255708,1739719848032,-288.78541358,0.00011041,2]
[353255709,1739719848042,-500.0,0.00011041,2]
[353255710,1739719848053,-505.12,0.00011041,2]
[353255711,1739719848063,-509.66,0.00011041,2]
[353255712,1739719848074,-500.0,0.00011041,2]
[353255713,1739719848085,-500.0,0.00011041,2]
[353255714,1739719848095,-500.0,0.00011041,2]
[353255715,1739719848106,-500.0,0.00011041,2]
[353255716,1739719848116,-500.0,0.00011041,2]
[353255717,1739719848127,-500.0,0.00011041,2]
[353255718,1739719848137,-500.0,0.00011041,2]
[353255719,1739719848147,-500.0,0.00011041,2]
[353255720,1739719848157,-500.0,0.00011041,2]
[353255721,1739719848167,-508.35842414,0.00011041,2]
[353255722,1739719848177,-500.0,0.00011041,2]
[353255723,1739719848187,-500.0,0.00011041,2]
[353255724,1739719848197,-500.0,0.00011041,2]
[353255725,1739719848216,-500.0,0.00011041,2]
[353255726,1739719848226,-500.0,0.00011041,2]
[353255727,1739719848235,-500.0,0.00011041,2]
[353255728,1739719848245,-500.0,0.00011041,2]
[353255729,1739719848256,-500.0,0.00011041,2]
[353255730,1739719848266,-500.0,0.00011041,2]
[353255731,1739719848276,-500.0,0.00011041,2]